bitfinex-derivatives/quotes_ETHF0:USTF0_20250816
["timestamp","ask_amount","ask_price","bid_price","bid_amount"]
[1755348318056,0.4229,4394.4,4394.3,0.6018]
[1755348318562,0.4229,4394.4,4394.3,1.4934]
[1755348318763,3.2078,4394.5,4394.3,1.4934]
[1755348318966,3.2078,4394.5,4394.4,1.4765]
[1755348321966,0.8588,4395.5,4395.4,0.1631]
[1755348322167,0.2548,4395.5,4395.4,0.4251]
[1755348322863,0.689,4395.5,4395.4,0.4251]
[1755348324166,0.604,4395.0,4394.9,3.3709]
[1755348324354,0.604,4394.7,4394.6,0.4251]
[1755348324555,0.2548,4394.7,4394.6,0.4251]
[1755348324760,0.8812,4395.6,4394.7,0.262]
[1755348324961,0.2548,4395.4,4394.9,3.4698]
[1755348325155,1.1033,4395.4,4395.3,0.4251]
[1755348325354,1.4852,4395.4,4395.3,0.4251]
[1755348326262,0.689,4395.4,4395.3,0.4251]
[1755348326465,1.4852,4395.4,4395.3,0.4251]
[1755348329870,0.689,4395.4,4395.3,0.4251]
[1755348330072,0.8588,4395.4,4395.3,0.4251]
[1755348330370,1.4852,4395.4,4395.3,0.4251]
[1755348330762,0.604,4395.0,4394.9,3.3709]
[1755348330963,1.4852,4395.0,4394.9,3.6329]
[1755348331168,1.4852,4395.0,4394.9,3.3709]
[1755348331567,1.4852,4395.0,4394.9,3.6329]
[1755348331766,0.8485,4395.0,4394.5,21.232]
[1755348332070,1.4852,4394.6,4394.5,0.1631]
[1755348332778,0.604,4394.6,4394.4,3.2078]
[1755348333069,1.4852,4394.5,4394.4,3.2078]
[1755348333765,0.604,4394.5,4393.6,3.2078]
[1755348333964,1.4852,4393.7,4393.6,3.2078]
[1755348334564,1.4852,4393.7,4393.6,3.7927]
[1755348334773,1.4852,4393.7,4393.6,3.2078]
[1755348335070,0.604,4393.4,4393.3,1.2203]
[1755348335370,1.4852,4393.4,4393.3,1.2203]
[1755348337069,0.8485,4393.4,4393.1,21.231]
[1755348337274,1.1033,4393.2,4393.1,21.231]
[1755348337571,1.4852,4393.2,4393.1,21.231]
[1755348339174,1.4852,4393.2,4393.1,21.8159]
[1755348339382,1.4852,4393.2,4393.1,22.4513]
[1755348341368,0.8812,4394.6,4393.1,22.4513]
[1755348341574,0.2548,4394.5,4394.0,0.3734]
[1755348341781,0.604,4394.1,4394.0,0.5849]
[1755348342075,0.604,4394.1,4394.0,21.8179]
[1755348342268,1.2304,4394.1,4394.0,21.8179]
[1755348342468,1.4852,4394.1,4394.0,22.4533]
[1755348342881,1.4852,4394.1,4394.0,22.7095]
[1755348343075,1.4852,4394.1,4394.0,22.4533]
[1755348343276,1.2407,4393.5,4393.4,24.4418]
[1755348343473,1.4852,4393.5,4393.4,24.4418]
[1755348343670,1.4852,4394.1,4394.0,0.5849]
[1755348343881,1.4852,4394.1,4394.0,1.2203]
[1755348344679,4.693,4394.6,4394.5,1.2203]
[1755348345577,4.693,4394.6,4394.5,0.5849]
[1755348345974,4.693,4394.6,4394.5,1.2203]
[1755348346175,4.693,4394.6,4394.0,0.2562]
[1755348346176,4.693,4394.6,4394.1,0.6354]
[1755348346482,0.604,4394.3,4394.2,1.2203]
[1755348346780,1.4852,4394.3,4394.2,1.2203]
[1755348348883,1.4719,4394.6,4394.5,1.2027]
[1755348349081,0.598,4394.0,4393.9,25.6445]
[1755348349289,1.4719,4394.0,4393.9,25.6445]
[1755348350381,0.8476,4394.0,4393.9,25.9016]
[1755348350583,0.2496,4394.3,4394.2,0.5785]
[1755348350786,0.2496,4394.3,4394.2,1.4598]
[1755348351082,1.4719,4394.3,4394.2,1.4598]
[1755348351481,1.4719,4394.3,4394.2,1.2027]
[1755348351980,0.496,4394.2,4393.8,0.2545]
[1755348352177,1.094,4393.9,4393.8,21.8177]
[1755348352378,1.4719,4393.9,4393.8,21.8177]
[1755348352681,1.4719,4393.9,4393.8,22.4327]
[1755348352875,0.8739,4395.0,4393.8,22.4327]
[1755348353081,3.2078,4395.1,4393.9,0.8813]
[1755348353584,0.6706,4394.0,4393.9,1.4598]
[1755348353877,0.8476,4394.0,4393.9,1.4598]
[1755348354081,1.4719,4394.0,4393.9,1.2027]
[1755348354284,1.4719,4394.0,4393.9,0.5785]
[1755348354587,1.4719,4394.0,4393.9,0.1632]
[1755348355085,1.4719,4394.0,4393.8,21.23]
[1755348355292,0.598,4393.7,4393.4,3.2078]
[1755348355478,0.8476,4393.6,4393.5,0.3332]
[1755348355789,0.8476,4393.6,4393.5,1.2027]
[1755348356084,1.4719,4393.6,4393.5,1.2027]
[1755348357476,0.8476,4393.6,4393.5,1.2027]
[1755348357683,0.424,4393.6,4393.5,1.4598]
[1755348358088,1.4719,4393.6,4393.5,1.2027]
[1755348360886,0.598,4393.6,4393.4,3.2078]
[1755348361081,3.2078,4394.1,4393.4,3.2078]
[1755348361082,1.4719,4393.5,4393.4,3.2078]
[1755348361281,0.3779,4393.8,4393.4,3.7863]
[1755348361476,0.598,4393.8,4393.7,0.5785]
[1755348361681,0.598,4393.8,4393.5,21.227]
[1755348361682,1.0453,4394.7,4394.6,0.4153]
[1755348361887,1.2223,4394.7,4394.6,1.2027]
[1755348362189,1.4719,4394.7,4394.6,1.2027]
[1755348363284,1.4719,4394.7,4394.6,1.4598]
[1755348363781,1.4719,4394.7,4394.6,1.2027]
[1755348363979,1.2255,4394.2,4394.1,0.9482]
[1755348364183,1.4719,4394.2,4394.1,1.2027]
[1755348364382,3.2078,4394.8,4394.1,0.5785]
[1755348364583,0.598,4394.4,4394.3,0.5785]
[1755348364784,1.2223,4394.4,4394.0,21.225]
[1755348364985,1.2223,4394.1,4394.0,21.8035]
[1755348365289,0.598,4394.1,4393.9,3.2078]
[1755348365585,1.4719,4393.6,4393.5,22.4277]
[1755348365791,1.4719,4393.6,4393.5,21.8035]
[1755348366283,0.598,4393.4,4393.3,3.2078]
[1755348366490,1.2223,4393.3,4393.2,0.5785]
[1755348366694,1.2223,4393.3,4393.2,1.2027]
[1755348367190,0.2496,4393.2,4392.7,3.2078]
[1755348367386,1.4719,4392.8,4392.7,4.4105]
[1755348367583,0.2464,4393.2,4392.7,25.8916]
[1755348367785,0.2496,4393.1,4393.0,0.5785]
[1755348368091,0.2496,4393.1,4393.0,1.4598]
[1755348368588,0.424,4393.1,4393.0,1.4598]
[1755348368892,1.094,4393.1,4393.0,1.4598]
[1755348369092,1.4719,4393.1,4393.0,1.4598]
[1755348369386,1.4719,4393.1,4393.0,1.2027]
[1755348369587,1.4719,4392.8,4392.7,24.4318]
[1755348369989,1.4719,4392.8,4392.7,3.2078]
[1755348370389,1.4719,4392.8,4392.7,3.541]
[1755348370585,1.4719,4392.8,4392.7,0.5877]
[1755348370791,1.4719,4392.8,4392.7,0.3332]
[1755348371094,1.4719,4392.8,4392.7,0.1632]
[1755348371688,0.598,4392.3,4392.2,3.2078]
[1755348371887,1.4719,4392.3,4392.2,3.2078]
[1755348372284,1.4719,4392.3,4392.2,3.371]
[1755348372484,1.4719,4392.3,4392.2,4.1652]
[1755348372791,1.4719,4392.3,4392.2,3.2078]
[1755348373394,1.4719,4392.3,4392.2,3.541]
[1755348373693,1.4719,4392.3,4392.2,3.2078]
[1755348374092,1.4719,4392.3,4392.2,3.541]
[1755348374599,1.4719,4392.3,4392.2,3.2078]
[1755348375293,0.598,4392.2,4392.1,0.3332]
[1755348375494,1.4719,4392.2,4392.1,0.3332]
[1755348375994,1.4719,4392.2,4391.9,21.223]
[1755348376199,1.4719,4392.1,4392.0,1.2027]
[1755348376401,0.9759,4392.1,4392.0,1.2027]
[1755348376998,1.4719,4392.1,4392.0,1.2027]
[1755348378000,1.4719,4392.1,4392.0,0.1632]
[1755348378400,1.4719,4392.1,4391.9,21.223]
[1755348378598,0.6076,4391.8,4391.2,3.2078]
[1755348378793,0.6076,4391.4,4391.3,21.8191]
[1755348378991,1.4781,4391.4,4391.3,0.3387]
[1755348379197,1.4781,4391.4,4391.2,3.2078]
[1755348379493,1.4781,4391.3,4391.2,4.4218]
[1755348380702,1.4781,4391.3,4391.2,3.8029]
[1755348381403,1.4781,4391.3,4391.2,3.6322]
[1755348381899,1.4781,4391.3,4391.2,3.8029]
[1755348382101,1.4781,4391.3,4391.2,4.4218]
[1755348383504,0.8553,4391.3,4390.5,3.2078]
[1755348383702,1.2304,4390.6,4390.5,3.4642]
[1755348384006,1.4781,4390.6,4390.5,0.2564]
[1755348384201,1.4781,4390.6,4390.5,0.4271]
[1755348385100,1.4781,4390.6,4390.5,1.214]
[1755348385693,0.2532,4391.3,4390.6,0.618]
[1755348385901,0.2532,4391.3,4391.2,1.458]
[1755348386199,0.4173,4391.3,4391.2,1.458]
[1755348386403,0.5938,4391.3,4391.2,1.458]
[1755348386605,0.8608,4391.3,4391.2,1.214]
[1755348386802,1.4781,4391.3,4391.2,1.214]
[1755348390502,3.2078,4391.4,4391.2,1.458]
[1755348390703,4.0686,4392.2,4392.1,0.5951]
[1755348390900,4.0686,4392.2,4392.1,0.9691]
[1755348391100,4.3163,4392.2,4392.1,1.214]
[1755348391507,4.6859,4392.2,4392.1,1.214]
[1755348392411,4.6859,4392.2,4392.1,0.4271]
[1755348392808,4.6859,4392.2,4391.8,0.374]
[1755348392809,0.4435,4391.5,4391.4,0.672]
[1755348393106,1.4781,4391.5,4391.4,0.4271]
[1755348393306,0.6076,4391.5,4391.0,21.224]
[1755348393507,1.4781,4391.2,4391.1,1.214]
[1755348394011,1.4781,4391.2,4390.5,3.2078]
[1755348394212,0.8608,4391.1,4391.0,0.5951]
[1755348394513,1.4781,4391.1,4391.0,1.214]
[1755348394713,0.8608,4391.1,4391.0,1.458]
[1755348395211,0.2532,4391.1,4391.0,1.458]
[1755348395413,0.5938,4391.1,4391.0,1.458]
[1755348395613,1.4781,4391.1,4391.0,1.214]
[1755348395908,1.2304,4391.1,4391.0,0.5951]
[1755348396110,0.4173,4391.1,4391.0,1.214]
[1755348396310,0.6076,4390.6,4390.5,3.8029]
[1755348396511,0.8608,4390.6,4390.5,25.2699]
[1755348396711,0.8705,4391.6,4390.5,25.0259]
[1755348397014,0.2477,4391.5,4390.7,0.374]
[1755348397205,1.2304,4391.4,4391.3,0.2564]
[1755348397406,1.4781,4391.4,4391.3,0.2564]
[1755348399316,1.4781,4391.4,4391.3,0.9691]
[1755348399510,1.4781,4391.4,4391.3,1.214]
[1755348399919,0.2477,4391.9,4391.4,0.6189]
[1755348400111,0.665,4391.9,4391.8,1.458]
[1755348400310,1.1085,4391.9,4391.8,1.458]
[1755348400509,1.4781,4391.9,4391.8,1.214]
[1755348402118,0.4173,4391.9,4391.8,1.214]
[1755348402312,1.4781,4391.9,4391.8,1.214]
[1755348402911,0.2532,4391.8,4390.9,0.6189]
[1755348403219,1.4781,4391.0,4390.9,1.214]
[1755348403512,0.8705,4390.9,4390.8,0.374]
[1755348403717,0.2532,4391.3,4390.8,0.5951]
[1755348404021,0.2532,4391.3,4391.2,1.458]
[1755348404610,0.2532,4391.6,4390.2,3.5818]
[1755348404809,0.8705,4391.1,4390.3,0.6189]
[1755348405007,1.2249,4391.1,4391.0,0.2564]
[1755348405213,1.2249,4391.1,4391.0,0.8011]
[1755348405408,1.2249,4391.1,4391.0,1.214]
[1755348405608,1.4781,4391.1,4391.0,1.214]
[1755348405908,0.6076,4391.1,4390.5,0.244]
[1755348406108,0.6076,4390.8,4390.7,1.214]
[1755348406309,1.4781,4390.8,4390.7,1.214]
[1755348407525,0.4173,4390.8,4390.7,1.458]
[1755348409724,0.2486,4391.6,4391.1,1.5097]
[1755348410024,0.2467,4391.7,4391.6,0.597]
[1755348410218,0.2467,4392.0,4391.7,0.5225]
[1755348410423,0.4208,4392.0,4391.9,1.2549]
[1755348411318,1.21405758,4393.5,4391.9,1.2549]
[1755348411319,3.2078,4392.9,4392.4,0.2677]
[1755348411515,0.8663,4392.5,4392.4,0.9872]
[1755348411720,1.265,4392.5,4392.4,0.9872]
[1755348411926,1.5117,4392.5,4392.4,0.597]
[1755348412126,1.5117,4392.5,4392.1,0.3902]
[1755348412422,1.0164,4392.0,4391.9,3.2078]
[1755348412627,1.5117,4392.0,4391.9,3.2078]
[1755348412823,0.894,4391.9,4391.4,0.3902]
[1755348413129,1.5117,4391.3,4391.0,3.2078]
[1755348413335,1.0164,4391.3,4391.2,0.9872]
[1755348413538,1.0164,4391.3,4391.2,0.2632]
[1755348413936,1.5117,4391.3,4391.2,0.2632]
[1755348414638,0.5971,4391.1,4391.0,3.2078]
[1755348414830,0.3504,4390.6,4390.5,3.5416]
[1755348415031,0.8457,4390.6,4390.5,4.4627]
[1755348415437,1.113,4390.6,4390.5,4.4627]
[1755348415634,1.5117,4390.6,4390.5,4.4627]
[1755348416129,1.5117,4390.6,4390.5,3.8048]
[1755348416333,0.4208,4390.6,4390.5,4.0725]
[1755348416535,0.4208,4390.6,4390.5,4.7175]
[1755348416735,1.113,4390.6,4390.5,4.4627]
[1755348416936,1.5117,4390.6,4390.5,4.4627]
[1755348417641,0.6177,4390.2,4390.1,1.2549]
[1755348417841,1.5117,4390.2,4390.1,1.2549]
[1755348419042,1.5117,4390.2,4390.1,0.2632]
[1755348419238,0.6177,4390.2,4389.9,3.2078]
[1755348419439,0.6177,4390.0,4389.9,3.2078]
[1755348419740,1.5117,4390.0,4389.9,3.2078]
[1755348420335,1.5117,4390.0,4389.7,21.8739]
[1755348420644,3.2078,4390.7,4389.7,22.4709]
[1755348420645,1.5117,4389.8,4389.7,22.4709]
[1755348421737,0.8644,4389.5,4389.4,5.22269071]
[1755348421938,0.8644,4389.5,4387.4,1.13885]
[1755348421939,0.4414,4389.2,4388.2,3.2078]
[1755348422244,0.2467,4387.8,4387.7,3.8657]
[1755348422444,0.38781771,4387.8,4387.7,3.8657]
[1755348422838,0.38781771,4387.8,4387.7,3.2078]
[1755348423038,0.14111771,4387.8,4387.7,3.8657]
[1755348423238,0.2467,4388.8,4387.8,0.6579]
[1755348423439,0.14093341,4388.7,4387.9,0.6579]
[1755348423640,0.2467,4388.5,4388.0,0.6579]
[1755348423839,0.14093341,4388.4,4387.9,0.2548]
[1755348424039,0.14093341,4388.4,4388.3,0.645]
[1755348424344,0.38763341,4388.4,4388.3,0.2677]
[1755348424545,0.14093341,4388.4,4387.9,0.3902]
[1755348424747,0.2467,4388.2,4387.7,3.2078]
[1755348425050,0.2467,4388.8,4387.8,0.3902]
[1755348425239,0.2467,4388.6,4387.9,0.2677]
[1755348425436,0.14081804,4388.5,4387.9,0.2677]
[1755348425639,0.2467,4388.3,4388.1,0.5225]
[1755348425841,3.2078,4388.9,4388.2,0.6579]
[1755348426040,0.14070212,4388.8,4388.2,0.6579]
[1755348426243,0.14070212,4388.7,4388.1,0.2548]
[1755348426441,0.2467,4388.6,4388.5,0.6579]
[1755348428045,3.0,4388.6,4387.6,3.2078]
[1755348428242,0.2467,4388.2,4387.4,0.645]
[1755348428543,3.2078,4388.3,4387.7,3.2078]
[1755348428841,3.2078,4387.8,4386.7,0.5225]
[1755348429152,0.2467,4388.3,4387.5,3.2078]
[1755348429343,0.2467,4388.1,4387.5,3.2078]
[1755348429645,0.2467,4388.0,4387.9,0.2548]
[1755348430051,0.2467,4388.4,4387.9,0.2548]
[1755348430241,0.2467,4388.3,4387.6,0.9127]
[1755348430545,3.2078,4389.0,4388.2,0.2677]
[1755348430755,0.2467,4389.7,4389.0,0.9127]
[1755348430942,0.3467,4390.2,4389.6,3.2078]
[1755348431145,0.14028759,4390.1,4389.7,0.9127]
[1755348431447,0.1,4390.2,4389.8,0.45529]
[1755348431653,0.1,4390.2,4389.7,21.427]
[1755348431654,3.2078,4391.3,4390.2,0.3902]
[1755348431947,0.1402362,4391.2,4390.2,0.9127]
[1755348432152,0.3467,4391.1,4390.2,0.645]
[1755348432346,3.2078,4391.3,4390.3,0.2677]
[1755348432551,0.1,4390.9,4390.3,0.2677]
[1755348432750,3.2078,4390.8,4389.8,0.6579]
[1755348432944,0.2467,4390.6,4389.8,0.6579]
[1755348433147,0.2467,4390.4,4389.8,0.6579]
[1755348434153,0.1,4390.3,4389.8,0.6579]
[1755348434356,0.3467,4390.7,4389.6,3.2078]
[1755348434550,3.2078,4390.3,4389.1,3.31032555]
[1755348434750,0.14030591,4390.2,4389.1,0.10252555]
[1755348435148,3.2078,4389.8,4389.1,0.10252555]
[1755348435350,0.3467,4389.7,4389.1,0.10252555]
[1755348435547,0.1,4389.5,4389.1,0.37022555]
[1755348435752,0.3467,4389.4,4389.1,0.37022555]
[1755348435947,0.3467,4389.7,4389.1,0.37022555]
[1755348436157,0.2467,4389.5,4389.1,0.10252555]
[1755348436354,0.2467,4389.3,4389.1,0.10252555]
[1755348436554,3.2078,4389.8,4389.1,0.10252555]
[1755348436555,0.3467,4389.2,4389.1,0.10252555]
[1755348438459,0.3477,4389.2,4389.1,0.10252555]
[1755348440157,0.50140233,4389.2,4389.1,0.10252555]
[1755348440553,0.50140233,4389.2,4389.1,0.36042555]
[1755348440958,0.50140233,4389.2,4389.1,0.10252555]
[1755348442955,0.50161901,4389.2,4389.1,0.10252555]
[1755348443152,0.50061901,4389.2,4389.1,0.36042555]
[1755348443356,0.50061901,4389.2,4389.1,0.99462555]
[1755348443555,0.50161901,4389.2,4389.1,0.36042555]
[1755348443857,0.50161901,4389.2,4389.1,0.10252555]
[1755348444452,0.72258034,4389.2,4389.1,0.10252555]
[1755348446258,0.72258034,4389.2,4389.1,0.36042555]
[1755348446455,1.05918034,4389.2,4389.1,0.36042555]
[1755348449263,0.95468034,4389.2,4389.1,0.96422555]
[1755348449466,1.05518034,4389.2,4389.1,1.33822555]
[1755348451556,1.05572082,4389.2,4389.1,1.33822555]
[1755348453660,0.37542082,4389.2,4389.1,1.59842555]
[1755348453854,3.2078,4390.4,4390.3,0.169]
[1755348454059,3.2078,4390.4,4390.3,1.4959]
[1755348454562,4.7271,4390.4,4389.8,0.6342]
[1755348454765,4.4601,4390.4,4389.8,0.6342]
[1755348454958,1.5193,4389.9,4389.8,1.2357]
[1755348455454,1.2536,4389.9,4389.8,1.4959]
[1755348455665,1.5193,4389.9,4389.8,1.4959]
[1755348455964,1.2536,4389.9,4389.8,1.4959]
[1755348456466,3.2078,4390.4,4389.8,1.4959]
[1755348456665,0.3507,4389.9,4389.8,1.4959]
[1755348456866,0.8755,4389.9,4389.8,1.4959]
[1755348457166,1.2536,4389.9,4389.8,1.4959]
[1755348457366,1.5193,4389.9,4389.8,1.4959]
[1755348457760,3.3802,4390.4,4390.3,1.4959]
[1755348457960,3.2078,4390.4,4390.3,1.4959]
[1755348458366,3.3802,4390.4,4390.3,1.4959]
[1755348458561,3.6393,4390.4,4390.3,1.4959]
[1755348458861,3.3802,4390.4,4390.3,1.4959]
[1755348459070,3.2078,4390.4,4390.3,1.4959]
[1755348460563,3.8516,4391.4,4390.3,4.7037]
[1755348460763,3.6393,4391.4,4391.3,1.4959]
[1755348460964,3.3802,4391.4,4391.3,1.4959]
[1755348461268,3.2078,4391.4,4391.3,1.4959]
[1755348462863,3.2078,4391.9,4391.8,0.6038]
[1755348463062,3.2078,4391.9,4391.8,1.4959]
[1755348464060,3.2078,4392.4,4391.9,0.8921]
[1755348464261,3.2078,4392.4,4392.3,1.4959]
[1755348464460,4.4614,4392.4,4392.3,1.4959]
[1755348464665,4.7271,4392.4,4392.3,1.1219]
[1755348464862,4.7271,4392.4,4392.3,1.4959]
[1755348465265,4.4614,4392.4,4392.3,1.4959]
[1755348465767,1.2536,4392.7,4392.6,0.3407]
[1755348465969,1.0245536,4392.7,4392.1,0.2579]
[1755348466157,0.6098,4392.2,4392.1,0.8617]
[1755348466362,1.6683536,4392.2,4392.1,0.8617]
[1755348467174,0.5805536,4392.2,4392.1,0.6038]
[1755348467366,1.2243536,4392.2,4392.1,1.4959]
[1755348467970,0.1490536,4392.2,4392.1,1.4959]
[1755348468974,0.14883493,4392.2,4392.1,1.4959]
[1755348469172,1.38893493,4392.2,4392.1,1.4959]
[1755348469367,1.65103493,4392.2,4392.1,1.4959]
[1755348470876,1.38893493,4392.2,4392.1,1.4959]
[1755348471476,1.65103493,4392.2,4392.1,1.4959]
[1755348472670,1.38893493,4392.2,4392.1,1.4959]
[1755348473276,1.2401,4392.2,4392.1,1.4959]
[1755348473677,0.4367,4392.2,4392.1,1.4959]
[1755348473977,0.4264,4392.6,4392.5,1.5068]
[1755348474173,0.57388217,4392.6,4392.5,1.5068]
[1755348474979,0.94998217,4392.6,4392.5,1.5068]
[1755348475375,1.19898217,4392.6,4392.5,1.5068]
[1755348475570,1.37688217,4392.6,4392.5,1.5068]
[1755348475776,1.01388217,4392.6,4392.0,0.2635]
[1755348475976,0.4264,4392.1,4392.0,1.5068]
[1755348476280,1.63902737,4392.1,4392.0,0.8556]
[1755348476483,0.95002737,4392.1,4392.0,1.5068]
[1755348476679,0.14752737,4392.1,4392.0,1.5068]
[1755348478680,0.6251,4392.8,4392.0,0.6045]
[1755348478879,1.63907957,4392.7,4392.6,1.5068]
[1755348480185,1.63907957,4392.7,4392.6,0.8556]
[1755348480885,1.63907957,4392.7,4392.6,1.5068]
[1755348481284,0.57397957,4392.7,4392.6,1.5068]
[1755348481486,1.37697957,4392.7,4392.6,1.5068]
[1755348481685,0.57397957,4392.7,4392.6,1.5068]
[1755348482081,0.14757957,4392.7,4392.6,1.5068]
[1755348482882,1.63907957,4392.7,4392.6,0.8556]
[1755348483387,0.14757957,4392.7,4392.6,1.5068]
[1755348484379,0.57397957,4392.7,4392.6,1.5068]
[1755348484590,1.37697957,4392.7,4392.6,1.5068]
[1755348484890,1.63907957,4392.7,4392.6,1.5068]
[1755348485886,1.37697957,4392.7,4392.6,1.5068]
[1755348486589,0.14757957,4392.7,4392.6,1.5068]
[1755348488486,0.57397957,4392.7,4392.6,1.5068]
[1755348490091,1.63907957,4392.7,4392.6,0.8556]
[1755348490290,1.4915,4392.3,4392.2,1.5068]
[1755348490594,1.37697957,4392.3,4392.2,1.5068]
[1755348490793,0.14757957,4392.3,4392.2,1.5068]
[1755348490985,0.14843128,4392.5,4392.2,0.6045]
[1755348491295,1.4915,4393.5,4393.4,0.3433]
[1755348491592,2.05474608,4393.5,4393.4,0.5944]
[1755348491895,2.05474608,4393.5,4393.1,0.6512]
[1755348492100,0.6043,4393.2,4393.1,1.2557]
[1755348492283,2.05499888,4393.2,4393.1,1.2557]
[1755348492688,2.05499888,4393.2,4393.1,1.5068]
[1755348492896,0.98989888,4393.2,4393.1,1.5068]
[1755348493096,0.4264,4393.2,4393.1,1.5068]
[1755348493690,3.2078,4393.6,4393.5,0.6045]
[1755348493994,3.2078,4393.6,4393.5,1.5068]
[1755348495286,4.0742,4393.6,4393.5,1.5068]
[1755348495493,3.2078,4393.6,4393.5,1.5068]
[1755348495690,4.6993,4394.3,4394.2,1.1191]
[1755348495995,5.26210552,4394.3,4394.2,0.8556]
[1755348496494,5.26210552,4394.3,4394.0,0.3877]
[1755348496691,0.6043,4393.5,4393.4,0.868]
[1755348496890,1.4915,4393.5,4393.4,1.1191]
[1755348497089,0.8872,4394.2,4393.4,1.2557]
[1755348497290,0.4264,4393.6,4393.5,1.1191]
[1755348497490,1.2294,4393.6,4393.5,1.5068]
[1755348497797,1.4915,4393.6,4393.5,1.5068]
[1755348497997,0.6043,4393.1,4393.0,4.0634]
[1755348498193,1.4915,4393.1,4393.0,4.7146]
[1755348498390,1.2294,4393.1,4393.0,4.7146]
[1755348498692,1.4812,4393.1,4393.0,4.7146]
[1755348499196,1.2395,4393.1,4393.0,4.7146]
[1755348499393,0.5019,4393.6,4393.0,4.0634]
[1755348499588,0.4137,4393.5,4393.4,1.2521]
[1755348499893,0.4137,4393.5,4393.4,1.5003]
[1755348500591,1.0489,4393.5,4393.4,1.5003]
[1755348502400,0.4137,4393.5,4393.4,1.5003]
[1755348503095,0.53127725,4393.5,4393.4,1.5003]
[1755348503496,0.11757725,4393.5,4393.4,1.5003]
[1755348504300,0.6352,4394.2,4393.4,0.5933]
[1755348504600,0.53122441,4394.1,4394.0,1.5003]
[1755348505104,0.11752441,4394.1,4394.0,1.5003]
[1755348505703,0.11749264,4394.1,4394.0,1.5003]
[1755348507397,0.11749264,4394.1,4394.0,4.5003]
[1755348507600,0.4137,4394.9,4394.8,0.3493]
[1755348507800,0.576,4394.6,4394.5,0.2658]
[1755348508096,1.5703606,4394.6,4394.5,0.2658]
[1755348508999,0.576,4394.4,4394.3,0.6151]
[1755348509204,1.3286606,4394.4,4394.3,1.5003]
[1755348509403,1.5703606,4394.4,4394.3,1.5003]
[1755348509604,1.3286606,4394.4,4394.3,1.5003]
[1755348509805,1.5703606,4394.4,4394.3,0.1754]
[1755348510002,1.5703606,4394.4,4394.2,3.2078]
[1755348510215,0.6352,4394.0,4393.5,3.2078]
[1755348510402,1.4529,4393.6,4393.5,0.6151]
[1755348510598,1.5703606,4393.6,4393.5,0.6151]
[1755348511603,1.5703606,4393.6,4393.5,1.1073]
[1755348511802,1.5703606,4393.6,4393.5,1.5003]
[1755348516902,1.5703606,4393.6,4393.5,0.3493]
[1755348517101,0.6934606,4393.6,4392.9,3.2078]
[1755348517300,1.4529,4393.3,4393.2,1.5003]
[1755348517509,1.5703606,4393.3,4393.2,1.5003]
[1755348518913,1.3286606,4393.3,4393.2,1.5003]
[1755348519414,0.1174606,4393.3,4393.2,1.5003]
[1755348519609,0.6352,4393.6,4393.3,0.907]
[1755348519816,1.0489,4393.6,4393.5,1.5003]
[1755348520207,0.90634444,4393.6,4393.5,1.5003]
[1755348520411,0.11764444,4393.6,4393.5,4.7081]
[1755348520808,0.6352,4395.1,4393.7,0.2658]
[1755348521010,0.8769,4395.0,4394.2,0.907]
[1755348521207,0.8362,4394.9,4394.8,0.3493]
[1755348521409,1.4529,4394.9,4394.8,0.6151]
[1755348521614,0.4137,4394.9,4394.8,1.5003]
[1755348521817,0.951,4395.6,4395.5,0.5933]
[1755348522009,1.4529,4395.6,4395.5,1.5003]
[1755348522210,1.2112,4395.6,4395.5,1.5003]
[1755348522907,0.7887,4395.6,4395.5,1.5003]
[1755348523417,0.2602,4395.9,4395.5,0.5933]
[1755348523618,3.6215,4396.3,4396.2,1.5003]
[1755348523815,3.9965,4396.3,4396.2,1.5003]
[1755348524613,0.7887,4396.3,4396.2,1.5003]
[1755348524813,1.2112,4396.3,4396.2,1.5003]
[1755348527308,1.2112,4396.3,4395.8,3.2078]
[1755348527309,0.8177,4396.3,4395.8,3.2078]
[1755348527515,0.8177,4396.3,4395.3,0.2658]
[1755348527516,0.576,4395.9,4395.3,0.514]
[1755348527712,0.4137,4395.4,4395.3,1.1073]
[1755348528015,0.4137,4395.4,4395.3,1.5003]
[1755348528016,1.4529,4395.4,4395.3,1.5003]
[1755348528513,1.4529,4395.4,4395.3,1.2563]
[1755348528718,0.5862,4394.8,4394.7,0.8648]
[1755348528912,1.2185,4394.8,4394.7,1.4882]
[1755348529119,1.4689,4394.8,4394.7,1.4882]
[1755348530421,1.4689,4394.6,4394.5,3.2078]
[1755348530611,1.4689,4394.6,4394.5,3.5535]
[1755348530815,1.4689,4394.6,4394.5,3.8162]
[1755348531120,1.2185,4394.6,4394.5,4.696]
[1755348531323,1.0496,4395.0,4394.9,0.6021]
[1755348531522,1.0496,4395.0,4394.9,1.4882]
[1755348531719,0.2449,4395.0,4394.9,1.4882]
[1755348532620,1.2185,4395.0,4394.9,1.4882]
[1755348532921,1.4689,4395.0,4394.9,1.4882]
[1755348533318,3.2078,4395.8,4394.9,1.4882]
[1755348533520,0.1724,4395.7,4395.6,0.6021]
[1755348533823,0.4173,4395.7,4395.6,1.4882]
[1755348534122,1.0496,4395.7,4395.6,1.4882]
[1755348534720,0.4173,4395.7,4395.6,1.4882]
[1755348534918,0.6323,4396.1,4395.6,1.4882]
[1755348535118,1.15940991,4396.0,4395.9,1.4882]
[1755348535318,1.57870991,4396.0,4395.9,1.4882]